[Event "*** Titled Tuesday Blitz"]
[Site "Chess.com"]
[Date "2021.02.02"]
[Round "3"]
[White "Azde"]
[Black "GoltsevDmitry2000"]
[Result "1/2-1/2"]
[WhiteElo "2437"]
[BlackElo "2633"]
[TimeControl "180+1"]
[EndTime "10:29:50 PST"]
[Termination "Game drawn by repetition"]

1. d4 {[%clk 0:03:00.9]} 1... Nf6 {[%clk 0:02:57.7]} 2. c4 {[%clk 0:02:59.8]}
2... e6 {[%clk 0:02:58.2]} 3. Nf3 {[%clk 0:02:59.2]} 3... Bb4+ {[%clk
0:02:58.2]} 4. Bd2 {[%clk 0:02:59.6]} 4... Qe7 {[%clk 0:02:58.5]} 5. g3 {[%clk
0:02:59.4]} 5... Ne4 {[%clk 0:02:57.5]} 6. Bg2 {[%clk 0:02:58.1]} 6... Nxd2
{[%clk 0:02:57.2]} 7. Nbxd2 {[%clk 0:02:59]} 7... Nc6 {[%clk 0:02:57.7]} 8. a3
{[%clk 0:02:54.7]} 8... Bxd2+ {[%clk 0:02:56.6]} 9. Qxd2 {[%clk 0:02:55.6]} 9...
a5 {[%clk 0:02:57.1]} 10. O-O {[%clk 0:02:37.4]} 10... O-O {[%clk 0:02:56.7]}
11. e4 {[%clk 0:02:34.9]} 11... d6 {[%clk 0:02:56.9]} 12. b4 {[%clk 0:02:33.7]}
12... Bd7 {[%clk 0:02:55.8]} 13. d5 {[%clk 0:02:28.2]} 13... exd5 {[%clk
0:02:55.4]} 14. exd5 {[%clk 0:02:26.5]} 14... Ne5 {[%clk 0:02:55.3]} 15. Qd4
{[%clk 0:02:05.2]} 15... axb4 {[%clk 0:02:51.7]} 16. axb4 {[%clk 0:02:04.9]}
16... b6 {[%clk 0:02:45.7]} 17. Nxe5 {[%clk 0:01:46.3]} 17... dxe5 {[%clk
0:02:46.6]} 18. Qc3 {[%clk 0:01:46.1]} 18... Qf6 {[%clk 0:02:38.7]} 19. Rxa8
{[%clk 0:01:19]} 19... Rxa8 {[%clk 0:02:37.3]} 20. c5 {[%clk 0:01:18.3]} 20...
Rb8 {[%clk 0:02:33.9]} 21. Re1 {[%clk 0:01:16.3]} 21... bxc5 {[%clk 0:02:32]}
22. bxc5 {[%clk 0:01:12.3]} 22... h6 {[%clk 0:02:27.5]} 23. h4 {[%clk
0:00:41.6]} 23... Re8 {[%clk 0:02:24.6]} 24. f4 {[%clk 0:00:35.9]} 24... Qg6
{[%clk 0:02:01.5]} 25. Rxe5 {[%clk 0:00:31]} 25... Ra8 {[%clk 0:01:59.6]} 26.
Re2 {[%clk 0:00:20.2]} 26... Qg4 {[%clk 0:01:50.5]} 27. Qf3 {[%clk 0:00:17.2]}
27... Qf5 {[%clk 0:01:48.4]} 28. Kh2 {[%clk 0:00:16.1]} 28... Ra1 {[%clk
0:01:47.3]} 29. c6 {[%clk 0:00:15.7]} 29... Bc8 {[%clk 0:01:42.3]} 30. Re8+
{[%clk 0:00:14.5]} 30... Kh7 {[%clk 0:01:42.7]} 31. Qe4 {[%clk 0:00:14.9]} 31...
Ra2 {[%clk 0:01:39.5]} 32. Kh1 {[%clk 0:00:13.2]} 32... Ra1+ {[%clk 0:01:35]}
33. Kh2 {[%clk 0:00:12.9]} 33... Ra2 {[%clk 0:01:35.4]} 34. Kg1 {[%clk
0:00:12.9]} 34... Ra1+ {[%clk 0:01:35.2]} 35. Kh2 {[%clk 0:00:11.9]} 1/2-1/2

[Event "*** Titled Tuesday Blitz"]
[Site "Chess.com"]
[Date "2021.02.02"]
[Round "3"]
[White "Mikhail_Golubev"]
[Black "krasavetc"]
[Result "1-0"]
[WhiteElo "2528"]
[BlackElo "2340"]
[TimeControl "180+1"]
[EndTime "10:29:50 PST"]
[Termination "Mikhail_Golubev won by resignation"]

1. e4 {[%clk 0:03:00.9]} 1... e6 {[%clk 0:02:56.9]} 2. d4 {[%clk 0:02:59.9]}
2... d5 {[%clk 0:02:56.9]} 3. Nc3 {[%clk 0:02:59.7]} 3... Nf6 {[%clk 0:02:55.9]}
4. Bg5 {[%clk 0:02:58.3]} 4... Bb4 {[%clk 0:02:55.6]} 5. e5 {[%clk 0:02:57.2]}
5... h6 {[%clk 0:02:55.2]} 6. Bd2 {[%clk 0:02:56.7]} 6... Nfd7 {[%clk
0:02:53.2]} 7. Qg4 {[%clk 0:02:48.7]} 7... Kf8 {[%clk 0:02:39.8]} 8. Nf3 {[%clk
0:02:45.8]} 8... c5 {[%clk 0:02:39.2]} 9. dxc5 {[%clk 0:02:41]} 9... Nc6 {[%clk
0:02:34.6]} 10. O-O-O {[%clk 0:02:37.3]} 10... Bxc5 {[%clk 0:02:12.5]} 11. Qg3
{[%clk 0:02:23.4]} 11... Bb4 {[%clk 0:02:03.6]} 12. a3 {[%clk 0:02:15.6]} 12...
Ba5 {[%clk 0:01:59.5]} 13. Nb5 {[%clk 0:02:14.7]} 13... Bxd2+ {[%clk 0:01:40]}
14. Rxd2 {[%clk 0:02:15.6]} 14... Kg8 {[%clk 0:01:28.9]} 15. h4 {[%clk
0:02:12.8]} 15... a6 {[%clk 0:01:28.2]} 16. Nbd4 {[%clk 0:01:50.1]} 16... Nxd4
{[%clk 0:01:23.5]} 17. Rxd4 {[%clk 0:01:48.9]} 17... Nf8 {[%clk 0:01:08.3]} 18.
Rg4 {[%clk 0:01:39.9]} 18... g6 {[%clk 0:01:07.8]} 19. h5 {[%clk 0:01:39.9]}
19... g5 {[%clk 0:01:07.8]} 20. Nxg5 {[%clk 0:01:38.5]} 20... hxg5 {[%clk
0:01:07.4]} 21. Rxg5+ {[%clk 0:01:38.1]} 21... Ng6 {[%clk 0:00:57.6]} 22. Rh3
{[%clk 0:01:20]} 22... Bd7 {[%clk 0:00:25.1]} 23. hxg6 {[%clk 0:01:13.9]} 23...
Rxh3 {[%clk 0:00:23]} 24. gxf7+ {[%clk 0:01:10.6]} 24... Kxf7 {[%clk 0:00:21.2]}
25. Rg7+ {[%clk 0:01:08.1]} 25... Ke8 {[%clk 0:00:18.2]} 26. Rg8+ {[%clk
0:01:07.2]} 1-0

[Event "*** Titled Tuesday Blitz"]
[Site "Chess.com"]
[Date "2021.02.02"]
[Round "3"]
[White "Onischuk_V"]
[Black "korbul"]
[Result "1-0"]
[WhiteElo "2830"]
[BlackElo "2612"]
[TimeControl "180+1"]
[EndTime "10:29:52 PST"]
[Termination "Onischuk_V won by resignation"]

1. e4 {[%clk 0:03:00.9]} 1... c5 {[%clk 0:02:59.6]} 2. Ne2 {[%clk 0:03:00.8]}
2... Nc6 {[%clk 0:02:59.2]} 3. g3 {[%clk 0:03:00.5]} 3... e6 {[%clk 0:02:58.5]}
4. Bg2 {[%clk 0:03:00.2]} 4... Nf6 {[%clk 0:02:57.9]} 5. O-O {[%clk 0:03:00]}
5... d5 {[%clk 0:02:56.2]} 6. exd5 {[%clk 0:02:59.2]} 6... exd5 {[%clk
0:02:55.7]} 7. d4 {[%clk 0:02:59]} 7... cxd4 {[%clk 0:02:46.1]} 8. Nxd4 {[%clk
0:02:58.5]} 8... Be7 {[%clk 0:02:36.1]} 9. Nc3 {[%clk 0:02:48.2]} 9... h6 {[%clk
0:02:24.9]} 10. Nde2 {[%clk 0:02:44.6]} 10... Be6 {[%clk 0:02:09.7]} 11. Nf4
{[%clk 0:02:44.3]} 11... d4 {[%clk 0:02:01.1]} 12. Nxe6 {[%clk 0:02:42.9]} 12...
fxe6 {[%clk 0:02:00.3]} 13. Ne4 {[%clk 0:02:43.1]} 13... Nxe4 {[%clk 0:01:56.1]}
14. Bxe4 {[%clk 0:02:41.9]} 14... O-O {[%clk 0:01:55.9]} 15. Qg4 {[%clk
0:02:39.2]} 15... Rf6 {[%clk 0:01:45.5]} 16. Bd2 {[%clk 0:02:18.1]} 16... Ne5
{[%clk 0:01:43.3]} 17. Qe2 {[%clk 0:02:12.7]} 17... Qc7 {[%clk 0:01:32.6]} 18.
Bf4 {[%clk 0:02:08.6]} 18... Rxf4 {[%clk 0:01:32.2]} 19. gxf4 {[%clk 0:02:08.3]}
19... Nf7 {[%clk 0:01:31.2]} 20. Qg4 {[%clk 0:02:07.1]} 20... Bd6 {[%clk
0:01:21.1]} 21. Rad1 {[%clk 0:01:50.5]} 21... Bxf4 {[%clk 0:01:16]} 22. Rxd4
{[%clk 0:01:50.1]} 22... Ng5 {[%clk 0:00:47.1]} 23. Bg2 {[%clk 0:01:33.6]} 23...
Be5 {[%clk 0:00:34.3]} 24. Rc4 {[%clk 0:01:32]} 24... Qd7 {[%clk 0:00:23.3]} 25.
f4 {[%clk 0:01:29.5]} 25... Bd4+ {[%clk 0:00:22.6]} 26. Kh1 {[%clk 0:01:29.5]}
26... Nf7 {[%clk 0:00:21.7]} 27. Rd1 {[%clk 0:01:26.3]} 27... Qb5 {[%clk
0:00:13.1]} 28. Rcxd4 {[%clk 0:01:24.1]} 28... Qxb2 {[%clk 0:00:12.9]} 29. Qxe6
{[%clk 0:01:24]} 29... Qxc2 {[%clk 0:00:11.6]} 30. Rd8+ {[%clk 0:01:23.3]} 30...
Rxd8 {[%clk 0:00:10.7]} 31. Rxd8+ {[%clk 0:01:23]} 31... Kh7 {[%clk 0:00:11.3]}
32. Be4+ {[%clk 0:01:23]} 1-0

[Event "*** Titled Tuesday Blitz"]
[Site "Chess.com"]
[Date "2021.02.02"]
[Round "3"]
[White "MrChampion_Coach"]
[Black "nrvisakh"]
[Result "0-1"]
[WhiteElo "2439"]
[BlackElo "2735"]
[TimeControl "180+1"]
[EndTime "10:29:53 PST"]
[Termination "nrvisakh won by resignation"]

1. d4 {[%clk 0:03:00.9]} 1... Nf6 {[%clk 0:02:58.9]} 2. c4 {[%clk 0:03:00.6]}
2... g6 {[%clk 0:02:58.9]} 3. Nc3 {[%clk 0:03:00.1]} 3... Bg7 {[%clk 0:02:59.2]}
4. e4 {[%clk 0:02:59.4]} 4... d6 {[%clk 0:02:59.2]} 5. h3 {[%clk 0:02:57.5]}
5... O-O {[%clk 0:02:58.9]} 6. Be3 {[%clk 0:02:57.2]} 6... e5 {[%clk 0:02:53.8]}
7. d5 {[%clk 0:02:55.5]} 7... a5 {[%clk 0:02:53.6]} 8. g4 {[%clk 0:02:52.7]}
8... Na6 {[%clk 0:02:53.1]} 9. Nge2 {[%clk 0:02:53.2]} 9... c6 {[%clk
0:02:38.1]} 10. Ng3 {[%clk 0:02:51.2]} 10... cxd5 {[%clk 0:02:36.6]} 11. cxd5
{[%clk 0:02:50.8]} 11... Bd7 {[%clk 0:02:30.9]} 12. f3 {[%clk 0:02:26.4]} 12...
Qb8 {[%clk 0:02:21.1]} 13. Bb5 {[%clk 0:02:02.2]} 13... Rc8 {[%clk 0:02:02.1]}
14. g5 {[%clk 0:01:50]} 14... Rxc3 {[%clk 0:02:01.3]} 15. bxc3 {[%clk
0:01:49.3]} 15... Bxb5 {[%clk 0:02:00.4]} 16. gxf6 {[%clk 0:01:49]} 16... Bxf6
{[%clk 0:02:00.6]} 17. Kf2 {[%clk 0:01:39.5]} 17... Qc8 {[%clk 0:01:44.2]} 18.
Rb1 {[%clk 0:01:28.4]} 18... Bc4 {[%clk 0:01:39.7]} 19. Rb6 {[%clk 0:01:05.4]}
19... Nc5 {[%clk 0:01:15.1]} 20. Rxd6 {[%clk 0:00:41.4]} 20... Nd3+ {[%clk
0:01:14]} 21. Kg2 {[%clk 0:00:41.3]} 21... Be7 {[%clk 0:01:12.9]} 22. Rb6 {[%clk
0:00:41.4]} 22... Bc5 {[%clk 0:01:12.9]} 23. Qd2 {[%clk 0:00:33.5]} 23... Nf4+
{[%clk 0:00:59.2]} 24. Kh2 {[%clk 0:00:33.2]} 24... Qxh3+ {[%clk 0:00:56.9]} 0-1

[Event "*** Titled Tuesday Blitz"]
[Site "Chess.com"]
[Date "2021.02.02"]
[Round "3"]
[White "chesslh19"]
[Black "SanchezKelvin"]
[Result "1/2-1/2"]
[WhiteElo "2258"]
[BlackElo "2477"]
[TimeControl "180+1"]
[EndTime "10:29:56 PST"]
[Termination "Game drawn by repetition"]

1. e4 {[%clk 0:03:00.9]} 1... c5 {[%clk 0:02:59]} 2. Nf3 {[%clk 0:03:00.1]} 2...
d6 {[%clk 0:02:58.4]} 3. d4 {[%clk 0:03:00.5]} 3... cxd4 {[%clk 0:02:59.1]} 4.
Nxd4 {[%clk 0:03:01.2]} 4... Nf6 {[%clk 0:02:59.4]} 5. Nc3 {[%clk 0:03:01.6]}
5... g6 {[%clk 0:02:58.4]} 6. Be3 {[%clk 0:03:00.3]} 6... Bg7 {[%clk 0:02:58.5]}
7. f3 {[%clk 0:03:01]} 7... O-O {[%clk 0:02:59.1]} 8. Qd2 {[%clk 0:03:01.5]}
8... Nc6 {[%clk 0:02:59.8]} 9. O-O-O {[%clk 0:03:02.1]} 9... Nxd4 {[%clk
0:03:00.1]} 10. Bxd4 {[%clk 0:03:02]} 10... Be6 {[%clk 0:03:01]} 11. g4 {[%clk
0:03:00.7]} 11... Qa5 {[%clk 0:03:00.2]} 12. Kb1 {[%clk 0:02:52.2]} 12... Rfc8
{[%clk 0:02:59.1]} 13. a3 {[%clk 0:02:52.1]} 13... Rab8 {[%clk 0:02:57.7]} 14.
Nd5 {[%clk 0:02:52.2]} 14... Qxd2 {[%clk 0:02:56]} 15. Rxd2 {[%clk 0:02:52]}
15... Nxd5 {[%clk 0:02:52.7]} 16. Bxg7 {[%clk 0:02:51.2]} 16... Kxg7 {[%clk
0:02:44.2]} 17. exd5 {[%clk 0:02:50.4]} 17... Bd7 {[%clk 0:02:44.7]} 18. Rd4
{[%clk 0:01:55.8]} 18... f5 {[%clk 0:02:38.4]} 19. g5 {[%clk 0:01:48.6]} 19...
h6 {[%clk 0:02:37]} 20. h4 {[%clk 0:01:40.6]} 20... hxg5 {[%clk 0:02:35.9]} 21.
hxg5 {[%clk 0:01:41.5]} 21... Rh8 {[%clk 0:02:35.8]} 22. Rdh4 {[%clk 0:01:38.6]}
22... Rxh4 {[%clk 0:02:34.5]} 23. Rxh4 {[%clk 0:01:39.5]} 23... Rh8 {[%clk
0:02:19.1]} 24. Rxh8 {[%clk 0:01:37.9]} 24... Kxh8 {[%clk 0:02:20]} 25. f4
{[%clk 0:01:38.1]} 25... Kg7 {[%clk 0:02:19.6]} 26. Kc1 {[%clk 0:01:28.1]} 26...
Kf7 {[%clk 0:02:18.6]} 27. Kd2 {[%clk 0:01:28]} 27... e5 {[%clk 0:02:12.8]} 28.
dxe6+ {[%clk 0:01:27.5]} 28... Bxe6 {[%clk 0:02:09]} 29. Ke3 {[%clk 0:01:27.1]}
29... Bd5 {[%clk 0:02:08.1]} 30. Kd4 {[%clk 0:01:26.2]} 30... Be4 {[%clk
0:01:49.6]} 31. Bc4+ {[%clk 0:01:20.5]} 31... Ke7 {[%clk 0:01:48.4]} 32. c3
{[%clk 0:01:19.2]} 32... b6 {[%clk 0:01:47.6]} 33. Bb3 {[%clk 0:01:14.8]} 33...
Bb1 {[%clk 0:01:46.2]} 34. Bd5 {[%clk 0:01:13.5]} 34... Bc2 {[%clk 0:01:42.9]}
35. Bc4 {[%clk 0:01:12.9]} 35... Bd1 {[%clk 0:01:36.6]} 36. Bd5 {[%clk
0:01:12.1]} 36... Kd7 {[%clk 0:01:31.7]} 37. Bf7 {[%clk 0:01:11.5]} 37... Bh5
{[%clk 0:01:30.2]} 38. b4 {[%clk 0:00:59.8]} 38... Ke7 {[%clk 0:01:28.5]} 39.
Bd5 {[%clk 0:00:59.8]} 39... Bd1 {[%clk 0:01:26.1]} 40. c4 {[%clk 0:00:59.3]}
40... Ba4 {[%clk 0:01:24.7]} 41. Bg8 {[%clk 0:00:58.2]} 41... Bd1 {[%clk
0:01:21.9]} 42. Bd5 {[%clk 0:00:57.9]} 42... Be2 {[%clk 0:01:21.4]} 43. Bc6
{[%clk 0:00:54.1]} 43... Bf1 {[%clk 0:01:14]} 44. Bd5 {[%clk 0:00:53.1]} 44...
Be2 {[%clk 0:01:11.7]} 45. Bc6 {[%clk 0:00:51.5]} 45... Bd1 {[%clk 0:01:08]} 46.
Bd5 {[%clk 0:00:51.2]} 1/2-1/2

[Event "*** Titled Tuesday Blitz"]
[Site "Chess.com"]
[Date "2021.02.02"]
[Round "3"]
[White "Sviridov_Valery"]
[Black "djano"]
[Result "1-0"]
[WhiteElo "2937"]
[BlackElo "2471"]
[TimeControl "180+1"]
[EndTime "10:29:59 PST"]
[Termination "Sviridov_Valery won on time"]

1. d4 {[%clk 0:03:00.9]} 1... Nf6 {[%clk 0:02:46.1]} 2. Nf3 {[%clk 0:03:00.2]}
2... g6 {[%clk 0:02:45.4]} 3. c4 {[%clk 0:02:59.3]} 3... Bg7 {[%clk 0:02:44.3]}
4. g3 {[%clk 0:03:00.2]} 4... O-O {[%clk 0:02:44.1]} 5. Bg2 {[%clk 0:03:00.8]}
5... c6 {[%clk 0:02:41.1]} 6. O-O {[%clk 0:03:00.7]} 6... d5 {[%clk 0:02:41.7]}
7. cxd5 {[%clk 0:03:01.6]} 7... cxd5 {[%clk 0:02:42.6]} 8. Nc3 {[%clk
0:03:01.5]} 8... Ne4 {[%clk 0:02:41.7]} 9. Ng5 {[%clk 0:03:01.3]} 9... Nxc3
{[%clk 0:02:35.2]} 10. bxc3 {[%clk 0:03:02.2]} 10... Nc6 {[%clk 0:02:35.1]} 11.
e4 {[%clk 0:03:02.1]} 11... dxe4 {[%clk 0:02:33]} 12. Re1 {[%clk 0:03:02.5]}
12... Bf5 {[%clk 0:02:27.8]} 13. h4 {[%clk 0:03:01]} 13... Rc8 {[%clk
0:02:23.4]} 14. h5 {[%clk 0:03:00.7]} 14... e5 {[%clk 0:01:58.6]} 15. d5 {[%clk
0:02:44.7]} 15... Na5 {[%clk 0:01:58.7]} 16. Nxe4 {[%clk 0:02:40.4]} 16... Nc4
{[%clk 0:01:53.9]} 17. h6 {[%clk 0:02:37]} 17... Bh8 {[%clk 0:01:53.3]} 18. Rb1
{[%clk 0:02:36]} 18... b6 {[%clk 0:01:52.9]} 19. Bg5 {[%clk 0:02:30.5]} 19... f6
{[%clk 0:01:51.6]} 20. Bc1 {[%clk 0:02:30.4]} 20... Bxe4 {[%clk 0:01:49.7]} 21.
Bxe4 {[%clk 0:02:29.8]} 21... f5 {[%clk 0:01:50.1]} 22. Bg2 {[%clk 0:02:21.3]}
22... Nd6 {[%clk 0:01:49.9]} 23. Qa4 {[%clk 0:02:06.3]} 23... e4 {[%clk
0:01:45.3]} 24. Qxa7 {[%clk 0:02:03.5]} 24... b5 {[%clk 0:01:43]} 25. Bf4 {[%clk
0:02:00.6]} 25... Rf7 {[%clk 0:01:35]} 26. Qa3 {[%clk 0:01:56]} 26... Nc4 {[%clk
0:01:26.9]} 27. Qa6 {[%clk 0:01:55.6]} 27... Be5 {[%clk 0:01:15.2]} 28. Bxe5
{[%clk 0:01:48.9]} 28... Nxe5 {[%clk 0:01:16.1]} 29. Rxb5 {[%clk 0:01:49.4]}
29... Nd3 {[%clk 0:01:12.2]} 30. Reb1 {[%clk 0:01:48.3]} 30... Rfc7 {[%clk
0:01:06.6]} 31. Qe6+ {[%clk 0:01:44.8]} 31... Kf8 {[%clk 0:00:48.9]} 32. d6
{[%clk 0:01:44.9]} 32... Rxc3 {[%clk 0:00:44.3]} 33. Rb7 {[%clk 0:01:40.2]}
33... Rc1+ {[%clk 0:00:26.6]} 34. Rxc1 {[%clk 0:01:40.2]} 34... Rxc1+ {[%clk
0:00:26.4]} 35. Kh2 {[%clk 0:01:40.6]} 35... Qe8 {[%clk 0:00:11.3]} 36. Qf6+
{[%clk 0:01:40]} 1-0

[Event "*** Titled Tuesday Blitz"]
[Site "Chess.com"]
[Date "2021.02.02"]
[Round "3"]
[White "MartinMatthiesen"]
[Black "Oligan22"]
[Result "0-1"]
[WhiteElo "2338"]
[BlackElo "2522"]
[TimeControl "180+1"]
[EndTime "10:30:03 PST"]
[Termination "Oligan22 won by resignation"]

1. d4 {[%clk 0:03:00.9]} 1... Nf6 {[%clk 0:02:58.2]} 2. c4 {[%clk 0:03:00.3]}
2... e6 {[%clk 0:02:58.4]} 3. Nf3 {[%clk 0:03:00.1]} 3... b6 {[%clk 0:02:57.9]}
4. g3 {[%clk 0:02:59.7]} 4... Ba6 {[%clk 0:02:57.6]} 5. b3 {[%clk 0:02:59.3]}
5... Bb4+ {[%clk 0:02:57]} 6. Bd2 {[%clk 0:02:59.5]} 6... Be7 {[%clk 0:02:56.9]}
7. Nc3 {[%clk 0:02:59.7]} 7... d5 {[%clk 0:02:52.9]} 8. cxd5 {[%clk 0:02:55.6]}
8... exd5 {[%clk 0:02:53.8]} 9. Bg2 {[%clk 0:02:55]} 9... Nbd7 {[%clk 0:02:53]}
10. a3 {[%clk 0:02:53.2]} 10... c5 {[%clk 0:02:50.9]} 11. O-O {[%clk 0:02:19]}
11... O-O {[%clk 0:02:50.6]} 12. Ne5 {[%clk 0:02:08.4]} 12... Bb7 {[%clk
0:02:43.5]} 13. Bf4 {[%clk 0:01:32.2]} 13... Nxe5 {[%clk 0:02:31.1]} 14. dxe5
{[%clk 0:01:30.6]} 14... Ne4 {[%clk 0:02:31.2]} 15. Nxe4 {[%clk 0:01:28.8]}
15... dxe4 {[%clk 0:02:32.1]} 16. Qc2 {[%clk 0:01:28.8]} 16... Qd5 {[%clk
0:02:21.1]} 17. Rfd1 {[%clk 0:01:26]} 17... Qc6 {[%clk 0:02:20.9]} 18. Rd2
{[%clk 0:01:02.3]} 18... Rad8 {[%clk 0:02:20.4]} 19. Rad1 {[%clk 0:01:01.6]}
19... h6 {[%clk 0:02:05.3]} 20. h4 {[%clk 0:00:53.9]} 20... Rxd2 {[%clk
0:01:59.5]} 21. Rxd2 {[%clk 0:00:51.6]} 21... Rd8 {[%clk 0:02:00.4]} 22. Rxd8+
{[%clk 0:00:50.6]} 22... Bxd8 {[%clk 0:02:01.3]} 23. a4 {[%clk 0:00:36]} 23...
Qd5 {[%clk 0:01:55.4]} 24. Qc3 {[%clk 0:00:15.5]} 24... Qd1+ {[%clk 0:01:48.7]}
25. Bf1 {[%clk 0:00:14.8]} 25... Bd5 {[%clk 0:01:47.1]} 26. e6 {[%clk 0:00:09]}
26... Bxe6 {[%clk 0:01:33.2]} 27. Qe5 {[%clk 0:00:08.8]} 27... Bf6 {[%clk
0:01:09.5]} 28. Qb8+ {[%clk 0:00:08.2]} 28... Kh7 {[%clk 0:01:09.8]} 29. Qxa7
{[%clk 0:00:08.1]} 29... Bh3 {[%clk 0:01:09.8]} 0-1

[Event "*** Titled Tuesday Blitz"]
[Site "Chess.com"]
[Date "2021.02.02"]
[Round "3"]
[White "joejan"]
[Black "Sokoloco"]
[Result "0-1"]
[WhiteElo "2229"]
[BlackElo "2494"]
[TimeControl "180+1"]
[EndTime "10:30:06 PST"]
[Termination "Sokoloco won by resignation"]

1. e4 {[%clk 0:02:50.4]} 1... g6 {[%clk 0:02:59.7]} 2. d4 {[%clk 0:02:49.3]}
2... Bg7 {[%clk 0:03:00.2]} 3. Nc3 {[%clk 0:02:49.8]} 3... d6 {[%clk 0:02:59.8]}
4. Bc4 {[%clk 0:02:48.2]} 4... Nf6 {[%clk 0:02:57.1]} 5. Qe2 {[%clk 0:02:48.1]}
5... e5 {[%clk 0:02:54.9]} 6. dxe5 {[%clk 0:02:47.3]} 6... dxe5 {[%clk
0:02:54.7]} 7. Bg5 {[%clk 0:02:47.2]} 7... c6 {[%clk 0:02:49.4]} 8. Nf3 {[%clk
0:02:46]} 8... Qe7 {[%clk 0:02:45.1]} 9. O-O-O {[%clk 0:02:44]} 9... O-O {[%clk
0:02:31.6]} 10. h4 {[%clk 0:02:38]} 10... h5 {[%clk 0:02:31.3]} 11. Bb3 {[%clk
0:02:25.5]} 11... Nbd7 {[%clk 0:02:25.8]} 12. Qe3 {[%clk 0:02:21.2]} 12... Nc5
{[%clk 0:02:20.2]} 13. Nh2 {[%clk 0:02:14.5]} 13... a5 {[%clk 0:01:48.1]} 14. f3
{[%clk 0:02:03.8]} 14... a4 {[%clk 0:01:41.2]} 15. Bc4 {[%clk 0:02:02.3]} 15...
b5 {[%clk 0:01:40.3]} 16. Be2 {[%clk 0:02:01.5]} 16... b4 {[%clk 0:01:33.4]} 17.
Nb1 {[%clk 0:02:01.1]} 17... b3 {[%clk 0:01:15.8]} 18. cxb3 {[%clk 0:01:58.6]}
18... axb3 {[%clk 0:01:14.2]} 19. a3 {[%clk 0:01:58.3]} 19... Ne6 {[%clk
0:00:54.8]} 20. g4 {[%clk 0:01:55.5]} 20... Nd4 {[%clk 0:00:53.8]} 21. gxh5
{[%clk 0:01:50]} 21... Qc5+ {[%clk 0:00:44.1]} 22. Nc3 {[%clk 0:01:48.7]} 22...
Rxa3 {[%clk 0:00:35.4]} 23. bxa3 {[%clk 0:01:33.6]} 23... Qxa3+ {[%clk 0:00:33]}
24. Kd2 {[%clk 0:01:29.3]} 24... Qb2+ {[%clk 0:00:29.9]} 25. Ke1 {[%clk
0:01:27]} 25... Nc2+ {[%clk 0:00:30.2]} 26. Kf2 {[%clk 0:01:23.1]} 26... Nxe3
{[%clk 0:00:30.4]} 27. Bxe3 {[%clk 0:01:22.6]} 27... Qxc3 {[%clk 0:00:30.2]} 28.
hxg6 {[%clk 0:01:21.9]} 28... fxg6 {[%clk 0:00:30.2]} 29. Rd3 {[%clk 0:01:08.3]}
29... Qb4 {[%clk 0:00:23.9]} 30. Rb1 {[%clk 0:01:06.2]} 30... b2 {[%clk
0:00:23.6]} 31. Rd2 {[%clk 0:01:02.9]} 31... Nxe4+ {[%clk 0:00:23.3]} 32. Ke1
{[%clk 0:01:01.8]} 32... Nxd2 {[%clk 0:00:23.3]} 33. Bxd2 {[%clk 0:01:02.1]}
33... Qxh4+ {[%clk 0:00:23.4]} 0-1

[Event "*** Titled Tuesday Blitz"]
[Site "Chess.com"]
[Date "2021.02.02"]
[Round "3"]
[White "AliKa2810"]
[Black "rynos0411"]
[Result "1-0"]
[WhiteElo "2595"]
[BlackElo "2403"]
[TimeControl "180+1"]
[EndTime "10:30:07 PST"]
[Termination "AliKa2810 won by resignation"]

1. c4 {[%clk 0:03:00.9]} 1... Nf6 {[%clk 0:02:59.3]} 2. g3 {[%clk 0:02:59.5]}
2... g6 {[%clk 0:02:59.4]} 3. Bg2 {[%clk 0:03:00]} 3... Bg7 {[%clk 0:03:00.3]}
4. Nf3 {[%clk 0:02:58.9]} 4... O-O {[%clk 0:03:00.8]} 5. O-O {[%clk 0:02:58.6]}
5... d6 {[%clk 0:03:01.4]} 6. d4 {[%clk 0:02:59]} 6... Nc6 {[%clk 0:03:00.7]} 7.
Nc3 {[%clk 0:02:59.1]} 7... e5 {[%clk 0:03:00.6]} 8. d5 {[%clk 0:02:57.4]} 8...
Ne7 {[%clk 0:02:59.9]} 9. e4 {[%clk 0:02:57.3]} 9... a5 {[%clk 0:02:53.6]} 10.
Ne1 {[%clk 0:02:56.5]} 10... Ne8 {[%clk 0:02:52.8]} 11. Nd3 {[%clk 0:02:57]}
11... f5 {[%clk 0:02:51]} 12. f4 {[%clk 0:02:51.3]} 12... fxe4 {[%clk
0:02:33.5]} 13. Nxe4 {[%clk 0:02:49.3]} 13... exf4 {[%clk 0:02:30.9]} 14. Bxf4
{[%clk 0:02:48.8]} 14... Nf5 {[%clk 0:02:28.1]} 15. Bg5 {[%clk 0:02:45.6]} 15...
Qd7 {[%clk 0:02:23.5]} 16. Nf4 {[%clk 0:02:23.3]} 16... Ne3 {[%clk 0:02:18.1]}
17. Qe2 {[%clk 0:02:02.3]} 17... Nxf1 {[%clk 0:02:16.9]} 18. Rxf1 {[%clk
0:02:03.2]} 18... Qg4 {[%clk 0:02:12]} 19. Bf3 {[%clk 0:01:57.4]} 19... Qf5
{[%clk 0:02:05.9]} 20. Be7 {[%clk 0:01:44.9]} 20... Rf7 {[%clk 0:01:58.7]} 21.
Ng5 {[%clk 0:01:45]} 21... Rxe7 {[%clk 0:00:52.2]} 22. Qxe7 {[%clk 0:01:44]}
22... Bd7 {[%clk 0:00:39.2]} 23. Be4 {[%clk 0:01:41.8]} 23... Qg4 {[%clk
0:00:23.3]} 24. Nfe6 {[%clk 0:01:36.1]} 24... Bxe6 {[%clk 0:00:18.9]} 25. Nxe6
{[%clk 0:01:24.4]} 25... h5 {[%clk 0:00:05.3]} 26. Qf7+ {[%clk 0:01:18.4]} 26...
Kh7 {[%clk 0:00:04.8]} 27. Bxg6+ {[%clk 0:01:17.5]} 27... Kh6 {[%clk 0:00:04.4]}
28. Bf5 {[%clk 0:01:01.9]} 28... Nf6 {[%clk 0:00:04.3]} 1-0